Cogmind - Beta 14 @@@ ROGUE MODE // 2024.09.22 @ 19:14:00 Player: trisiak Result: Destroyed by G-34 Mercenary with Small Laser Performance ------------- Evolutions (0) 0 Regions Visited (2) 400 Robots Destroyed (24) 120 Value Destroyed (433) 433 Prototype IDs (0) 0 Alien Tech Used (0) 0 Bonus (71) 71 TOTAL SCORE: 1024 Bonus ------- Follower Combat Kills 71 Cogmind --------- Core Integrity 0/250 Matter 298/300 Energy 125/125 System Corruption 3% Temperature Cool (6) Movement Rolling (130) Ox2 Location -10/Mines Parts ------- > --- POWER (1) -------- Light Ion Engine > --- PROPULSION (2) --- Aluminum Leg Compact Wheel > --- UTILITY (2) ------ High-capacity Storage Unit Improved Terrain Scanner > --- WEAPON (2) ------- Light Assault Rifle Light Assault Rifle > --- INVENTORY (20) --- Light Ion Engine Light Ion Engine Aluminum Leg Aluminum Leg Aluminum Leg Wheel Medium Storage Unit Medium Battery (150) Large Matter Pod (150) High-capacity Matter Pod (200) Terrain Scan Processor Seismic Detector ECM Suite Light Assault Rifle Peak State ------------ > --- POWER ------------ Light Ion Engine > --- PROPULSION ------- Aluminum Leg Aluminum Leg > --- UTILITY ---------- High-capacity Storage Unit Improved Terrain Scanner > --- WEAPON ----------- Light Assault Rifle Light Assault Rifle > --- INVENTORY -------- Light Ion Engine Aluminum Leg Aluminum Leg Aluminum Leg Wheel Compact Wheel Medium Storage Unit Medium Battery High-capacity Matter Pod ECM Suite Light Assault Rifle [Rating: 10] Favorites ----------- Power Ion Engine Engine Ion Engine Propulsion Aluminum Leg Treads Light Treads Leg Aluminum Leg Wheel Compact Wheel Utility High-capacity Storage Unit Device Improved Terrain Scanner Storage High-capacity Storage Unit Weapon Light Assault Rifle Ballistic Gun Light Assault Rifle Build | -11 -10 -10 ------- Run | Yrd Mat Min Slots Evolved . | . . . Power . | . . . Propulsion . | . . . Utility . | . . . Weapon . | . . . Parts Attached 17 | 1 10 6 Power 2 | . 1 1 Engine 2 | . 1 1 Core . | . . . Reactor . | . . . Propulsion 9 | . 6 3 Treads 3 | . 3 . Leg 5 | . 3 2 Wheel 1 | . . 1 Hover . | . . . Flight . | . . . Utility 3 | . 2 1 Device 1 | . . 1 Storage 2 | . 2 . Processor . | . . . Hackware . | . . . Protection . | . . . Artifact . | . . . Weapon 3 | 1 1 1 Energy Gun . | . . . Energy Cannon . | . . . Ballistic Gun 3 | 1 1 1 Ballistic Cannon . | . . . Launcher . | . . . Special Weapon . | . . . Impact Weapon . | . . . Slashing Weapon . | . . . Piercing Weapon . | . . . Special Melee Weapon . | . . . Unidentified Prototypes . | . . . Parts Lost 3 | . 1 2 Power . | . . . Propulsion 1 | . . 1 Utility . | . . . Weapon 2 | . 1 1 Highest Loss Streak 1 | . 1 1 To Critical Strikes . | . . . Average Slot Usage (%) 89 | . 84 95 Engine 14 | . 14 14 Treads 5 | . 10 . Leg 20 | . 17 23 Wheel 1 | . . 4 Device 4 | . . 10 Storage 14 | . 14 14 Ballistic Gun 27 | . 27 28 Peak Build Rating 10 | 6 8 10 Average Rating 7 | 5 6 9 On Entrance 6 | 6 6 7 Naked Turns . | . . . Heaviest Build 47 | 12 47 47 Greatest Support 40 | 20 40 20 Greatest Overweight (x) 2 | . 2 2 Average Overweight (x) . | . . 2 Largest Inventory Capacity 20 | 8 20 20 Average Capacity 15 | 8 11 20 Most Carried 14 | 6 11 14 Average Carried 9 | 5 8 11 Final Capacity 20 | 8 20 20 Final Carried 14 | 6 10 14 Class Distribution -------------------- 68% | Mutant 31% | Scavenger-Mutant Dominant Class ---------------- Mutant | -10/Materials Scavenger-Mutant | -10/Mines Resources | -11 -10 -10 ----------- Run | Yrd Mat Min Matter Collected 793 | 213 281 299 Remotely . | . . . Salvage Created 787 | 78 529 180 Parts 52 | 3 30 19 Haulers Intercepted . | . . . Recyclers Shooed 2 | 1 1 . Parts Field Recycled . | . . . Retrieved Matter . | . . . Parts Self-Destructed . | . . . Prevented . | . . . Kills | -11 -10 -10 ------- Run | Yrd Mat Min Combat Hostiles Destroyed 16 | . 10 6 Guns 16 | . 10 6 Classes Destroyed 9 | 1 6 2 Worker 2 | . 1 1 Builder 1 | . 1 . Tunneler 2 | . . 2 Recycler 3 | 1 1 1 Mechanic 1 | . 1 . Watcher 1 | . 1 . Swarmer 6 | . 3 3 Grunt 8 | . 7 1 Assembled 2 | . . 2 Best Kill Streak 4 | 1 4 3 Combat Bots Only 3 | . 3 3 Max Kills in Single Turn 1 | 1 1 1 Gunslinging . | . . . Exploded . | . . . Melee . | . . . Uniques/NPCs Destroyed . | . . . Combat | -11 -10 -10 -------- Run | Yrd Mat Min Hostile Shots Fired 123 | . 88 35 Missed 40 | . 29 11 Damage Taken 980 | . 743 237 Core 251 | . 176 75 Absorbed by Shields . | . . . Core Remaining (%) 100 | 100 . . Volleys Fired 103 | 3 65 35 Largest 2 | 1 2 2 Hottest 40 | 20 40 40 Shots Fired 205 | 3 132 70 Gun 205 | 3 132 70 Cannon . | . . . Launcher . | . . . Special . | . . . Kinetic 205 | 3 132 70 Thermal . | . . . Explosive . | . . . Electromagnetic . | . . . Robot Hit Streak 23 | 3 23 8 Robot Miss Streak 4 | . 4 3 Penetration Max . | . . . Secondary Targets 1 | . 1 . Max Gunslinging Chain 1 | . 1 . Shots Hit Robots 133 | 3 88 42 Core Hits 54 | 2 32 20 Critical Kills 1 | . 1 . Critical Parts Destroyed . | . . . Critical Strikes 1 | . 1 . Destroy 1 | . 1 . Melee Attacks . | . . . Impact . | . . . Slashing . | . . . Piercing . | . . . Sneak Attacks . | . . . Combat Hostiles . | . . . Follow-up Attacks . | . . . Damage Inflicted 1115 | 25 705 385 Guns 1115 | 25 705 385 Cannons . | . . . Explosions . | . . . Melee . | . . . Ramming . | . . . Kinetic 1115 | 25 705 385 Thermal . | . . . Explosive . | . . . Electromagnetic . | . . . Impact . | . . . Slashing . | . . . Piercing . | . . . Highest Corruption 3 | . 3 3 Average Corruption 2 | . 2 3 Corruption Purged . | . . . Corruption Blocked . | . . . Effects 23 | . 9 14 Message Errors 6 | . 2 4 Matter Fused 4 | . 1 3 Heat Flow Errors 1 | . . 1 Energy Discharges 3 | . 2 1 Parts Fused 1 | . . 1 Data Loss (minor) 1 | . . 1 Data Loss (major) 2 | . 1 1 Misfires 3 | . 2 1 Alerts 1 | . 1 . Weapon Failures 1 | . . 1 Overload Shots . | . . . Overflow Damage . | . . . Projectiles . | . . . Explosions . | . . . Melee . | . . . Knockbacks . | . . . Impact . | . . . Kinetic . | . . . Secondary . | . . . Self-Inflicted Damage 43 | . 43 . Shots 1 | . 1 . Rammed . | . . . Targets Rammed . | . . . Kicked . | . . . Crushed . | . . . Highest Temperature 144 | . 18 144 Average Temperature 15 | . 7 74 Received Heat Transfer 303 | . 291 12 Siege Activations . | . . . Robots Corrupted . | . . . Combat Hostiles . | . . . Parts Fried . | . . . Impact Corruptions . | . . . Robots Melted . | . . . Combat Hostiles . | . . . Parts Melted . | . . . Heat Transferred . | . . . Parts Sabotaged . | . . . Parts Stolen . | . . . Parts Stripped . | . . . Power Chain Reactions 1 | . 1 . Alert | -11 -10 -10 ------- Run | Yrd Mat Min Peak Influence 416 | 5 416 215 Initial 77 | . 3 77 Average 193 | 3 263 109 Maximum Alert Level 2 | . 2 1 Low Security (%) 48 | 100 25 75 Level 1 50 | . 72 24 Level 2 1 | . 2 . Level 3 . | . . . Level 4 . | . . . Level 5 . | . . . High Security . | . . . Max Security . | . . . Squads Dispatched 2 | . 2 . Investigation 1 | . 1 . Extermination . | . . . Reinforcement 1 | . 1 . Assault . | . . . Garrison . | . . . Intercept . | . . . Searches Triggered . | . . . Construction Impeded . | . . . Haulers Reinforced . | . . . Active Scanning Responses . | . . . Cargo Convoy Interrupts . | . . . Stealth | -11 -10 -10 --------- Run | Yrd Mat Min Distress Signals 2 | . 2 . Communications Jammed . | . . . Distress Signals . | . . . Times Spotted 33 | . 25 8 Peak Tracking Total 4 | . 4 3 Tactical Retreats 5 | . 5 . Traps | -11 -10 -10 ------- Run | Yrd Mat Min Traps Triggered 4 | . 4 . Indirectly . | . . . Trap Hack Attempts . | . . . Triggered . | . . . Disarmed . | . . . Reprogrammed . | . . . Reused . | . . . Traps Extracted . | . . . Installed . | . . . Triggered . | . . . Machines | -11 -10 -10 ---------- Run | Yrd Mat Min Machines Disabled 2 | . 2 . Max in Single Turn 2 | . 2 . Machines Repaired . | . . . Machines Dismantled . | . . . Machines Sabotaged . | . . . Overloaded Fab Kills . | . . . Hacking | -11 -10 -10 --------- Run | Yrd Mat Min Machines Accessed 5 | . 5 . Terminals 4 | . 4 . Fabricators . | . . . Repair Stations . | . . . Recycling Units 1 | . 1 . Scanalyzers . | . . . Garrison Access . | . . . Total Hacks 14 | . 14 . Successful 5 | . 5 . Failed 9 | . 9 . Catastrophic 2 | . 2 . Database Lockouts . | . . . Manual 6 | . 6 . Terminals 10 | . 10 . Fabricators . | . . . Repair Stations . | . . . Recycling Units 4 | . 4 . Scanalyzers . | . . . Garrison Access . | . . . Terminal Hacks 3 | . 3 . Robot Analysis 2 | . 2 . Hauler Manifests 1 | . 1 . Fabricator Hacks . | . . . Repair Station Hacks . | . . . Recycling Unit Hacks . | . . . Scanalyzer . | . . . Garrison Access Hacks . | . . . Unauthorized Hacks 2 | . 2 . Terminals 2 | . 2 . Botnet 2 | . 2 . Fabricators . | . . . Repair Stations . | . . . Recycling Units . | . . . Scanalyzers . | . . . Garrison Access . | . . . Data Cores Recovered . | . . . Used . | . . . Hacking Detections 5 | . 5 . Full Trace Events . | . . . Feedback Events . | . . . Feedback Blocked . | . . . Robot Schematics Acquired . | . . . Robots Built . | . . . Authchips . | . . . Time . | . . . Total Robot Build Rating . | . . . Part Schematics Acquired . | . . . Parts Built . | . . . Authchips . | . . . Time . | . . . Total Part Build Rating . | . . . Parts Repaired . | . . . Time . | . . . Parts Recycled . | . . . Recycled Matter . | . . . Retrieved Matter . | . . . Retrieved Components . | . . . Parts Scanalyzed . | . . . Part Schematics Acquired . | . . . Parts Damaged . | . . . Bothacking | -11 -10 -10 ------------ Run | Yrd Mat Min Used RIF Installer . | . . . Robots Hacked . | . . . Non-combat . | . . . Combat . | . . . Robot Hacks Applied . | . . . Relay Couplers Released . | . . . Fabnet Peak Effective % . | . . . Robots Rewired . | . . . Allies Hacked . | . . . Hacks Repelled . | . . . Allies | -11 -10 -10 -------- Run | Yrd Mat Min Total Allies 3 | . . 3 Largest Group 3 | . . 3 Highest-Rated Group 40 | . . 40 Highest-Rated Ally 16 | . . 16 Total Orders . | . . . Ally Attacks 15 | . . 15 Total Damage 181 | . . 181 Kills 5 | . . 5 Allies Corrupted . | . . . Allies Melted . | . . . Intel | -11 -10 -10 ------- Run | Yrd Mat Min Robot Analysis Total 2 | . 2 . Derelict Logs Recovered 1 | . . 1 Drone Launches . | . . . Drone Recoveries . | . . . Exploration | -11 -10 -10 ------------- Run | Yrd Mat Min Turns Passed 1577 | 25 877 675 Spaces Moved 625 | 14 409 202 Core . | . . . Treads 152 | . 152 . Legs 425 | 14 257 154 Wheels 48 | . . 48 Hover . | . . . Flight . | . . . Fastest Speed 120 | 120 120 130 Average Speed 182 | 120 160 229 Slowest Speed 260 | 120 260 260 Overloaded Moves . | . . . Propulsion Burnouts . | . . . Robots Hopped . | . . . Cave-ins Triggered . | . . . Exploration Rate (%) 33 | 2 65 34 Regions Visited 2 Branch Regions 1 Pre-discovered Areas 1 | . . 1 Known Exits Taken . | . . . Unknown Exits Taken 2 | 1 1 . Scrap Searched . | . . . Spaces Dug . | . . . Terrain Destroyed 3 | . 3 . Melee . | . . . Projectile . | . . . AOE 3 | . 3 . Terrain Rammed . | . . . Walls Destroyed . | . . . Machines Disabled . | . . . Actions | -11 -10 -10 --------- Run | Yrd Mat Min Total 906 | 20 528 358 Wait 133 | . 25 108 Move 623 | 13 408 202 Hop . | . . . Pick Up 17 | 1 10 6 Fast Attach 4 | 1 2 1 Attach 3 | . 1 2 Detach 2 | . 2 . Swap 10 | . 7 3 Drop 11 | 2 8 1 Fire 103 | 3 65 35 Melee . | . . . Ram . | . . . Kick . | . . . Crush . | . . . Escape Stasis . | . . . Rewire . | . . . Trap . | . . . Miscellaneous . | . . . Route ------- -11/Scrapyard -10/Materials (discovered 4 exits: [*Mat x2] / [*Min x2]) -10/Mines (discovered 2 exits: [*Mat] / [Sub]) History --------- Turn | Location | Event 2 | -11/Scrapyard | Discovered new exit (range 1) 26 | -11/Scrapyard | Entered Materials 314 | -10/Materials | Build established: Mutant 330 | -10/Materials | Discovered new exit (range 9) 435 | -10/Materials | Discovered new exit (range 13) 572 | -10/Materials | Core integrity fell below 50% 731 | -10/Materials | Discovered new exit (range 16) 799 | -10/Materials | Discovered new exit (range 16) 903 | -10/Materials | Entered Mines 945 | -10/Mines | Learned location of Mines (-8) 1001 | -10/Mines | Assisted by bots powering up and referring to "LRC-V3" 1243 | -10/Mines | Discovered new exit (range 15) 1345 | -10/Mines | Excavation squad dispatched 1345 | -10/Mines | A large section of the Mines collapsed 1347 | -10/Mines | Core integrity fell below 20% 1396 | -10/Mines | Build established: Scavenger-Mutant 1576 | -10/Mines | Discovered new exit (range 6) 1578 | -10/Mines | Destroyed by G-34 Mercenary with Small Laser Last Messages --------------- 01522_ K-01 Serf collects debris. 01523_ as-74155 destroyed. 01523_ T-07 Excavator is excavating. 01524_ U-05 Engineer lays Concrete. 01526_ K-01 Serf collects debris. 01527_ U-05 Engineer lays Concrete. 01527_ Acquired 13 matter. 01529_ U-05 Engineer lays Concrete. 01529_ T-07 Excavator is excavating. 01529_ Acquired Terrain Scan Processor. 01530_ U-05 Engineer lays Concrete. 01531_ K-01 Serf collects debris. 01532_ U-05 Engineer lays Concrete. 01536_ K-01 Serf collects debris. 01536_ U-05 Engineer lays Concrete. 01540_ K-01 Serf collects debris. 01542_ T-07 Excavator is excavating. 01543_ K-01 Serf collects debris. 01557_ IRJOVCUHGLRQMDU 43JVSBE2E JK4I=ZM62UR I 01576_ EXIT=FOUND Map ----- +----------------------------------------------------+ | ???####????????#?????????????????????????????????? | | ?### ###???#???##????????????????????????????????? | | ?## # ## #?????????????????????????????????????? | | ## # # ???#???????????????????????????????????? | | #### #???####?#?????????????????????????????????? | | " ###??##"#"##??????????????????????????????????? | | = ##??# = #??? ????????????????????????????????? | | * #### *%#?????????????????????????????????????? | | ! %=[## !#??????????????????????????????????????? | | #%*%!% = #??????? ???????#???????????????????????? | | ##| %*#???##??????????????????????????????????? | | ## =##????##?????????????????????????????????? | | ?## #????????????????????????????????????????? | | ?### #???#????????????????????????????????????? | | ##?# #????#???????????????????????????????????? | | #??##*=!###???????????????????#??????????????????? | | ????##%[ ####????????#???????????????????????????? | | ????#= #?????????#??????????? ????????????????? | | ??#??# #####??????????????????????????????????? | | ????## ### #######??#?????????????????????????? | | ??#??# ### #?#??????????????????????????? | | ?????# #?# #### #?????????#?????? ??????????? | | #??### ### #### ######### ## #???????????? | | ?### ## r #????????????? | | ?# #????????????? | | # ############@#######????????????????? | | #### #??????????# #??????????????????????? | | #???## #??????????# #??????????????????????? | | ###?????## #????????? #??????????????????????? | | ?????????## #????????? gg??????????????????????? | | ??????????## #????????? ??????????????????????? | | ??????#????####????????? < ??????????????????????? | | ??????????????????????? ??????????????????????? | | ??????????????????????? ###??????????????????????? | | ????????????????#??????#?????????????????????????? | | ?????????????????????????????????????????????????? | | ?????????????????????????????????????????????????? | | ???????#?????????????????????????????????????????? | | | | | | | | | | | | | | | | | | | | | | | | | +----------------------------------------------------+ Best States ------------- Heat Dissipation 25 Energy Generation 10 Energy Capacity 250 Matter Stores 300 Matter Capacity 300 Sight Range 16 Terrain Scan Range 16 Terrain Scan Density 10 Evasion (%) 55 Recoil Reduction 2 Item Schematics ----------------- None Robot Schematics ------------------ None Fabricated ------------ Nothing Alien Tech Used ----------------- None Achievements -------------- None Challenges ------------ None Game ------ Seed DerelictTimingRifle Manual? 0 Play Time 00:14:44 Cumulative 164.2 hours Start 2024.09.22 @ 19:02:24 End 2024.09.22 @ 19:14:00 Sessions 1 Manual Loads 0 Difficulty Rogue Special Mode None Game No. 41 Rogue 35 Adventurer 6 Explorer 0 Win Type - Total 3 Types 3/0/0/0/0/0/0/0/0 Lore% 44 Gallery% 62 Achievement% 52 Wizard Run 0 Options --------- Layout 1 ASCII 0 Keyboard 1 Movement Vi Keybinds 0 Fullscreen 2 Font 32/SmallcapsGlow Map View 50x40 Zoom Use 0% Tactical HUD 1 Map Filters NONE Filters NONE Steam 1 RUN: 77f3a0cd-7a38-4395-a583-7fbe3054d49b